fUSD/lending_fUSD_20241230
["ID","MTS","AMOUNT","RATE_DAILY","PERIOD"]
[347158764,1735530639661,-150.0,0.0001638,2]
[347158766,1735530639670,-3555.96534475,0.0001638,2]
[347158768,1735530639679,-150.0,0.00016386,2]
[347158770,1735530639688,-150.0,0.00016386,2]
[347158772,1735530639698,-150.0,0.00016387,2]
[347158774,1735530639707,-150.0,0.00016389,2]
[347158776,1735530639717,-150.0,0.00016397,2]
[347158778,1735530639726,-500.0,0.00016397,2]
[347158780,1735530639735,-500.0,0.00016397,2]
[347158782,1735530639744,-500.0,0.00016397,2]
[347158784,1735530639752,-500.0,0.00016397,2]
[347158786,1735530639762,-500.0,0.00016397,2]
[347158788,1735530639771,-500.0,0.00016397,2]
[347158790,1735530639780,-500.0,0.00016397,2]
[347158792,1735530639790,-500.0,0.00016397,2]
[347158794,1735530639799,-500.0,0.00016397,2]
[347158796,1735530639808,-500.0,0.00016397,2]
[347158798,1735530639817,-500.0,0.00016397,2]
[347158800,1735530639826,-500.0,0.00016397,2]
[347158802,1735530639835,-500.0,0.00016397,2]
[347158804,1735530639844,-500.0,0.00016397,2]
[347158806,1735530639854,-500.0,0.00016397,2]
[347158808,1735530639863,-500.0,0.00016397,2]
[347158810,1735530639871,-500.0,0.00016397,2]
[347158812,1735530639880,-500.0,0.00016397,2]
[347158814,1735530639889,-500.0,0.00016397,2]
[347158816,1735530639898,-1341.3,0.00016397,2]
[347158818,1735530639908,-2006.65,0.00016397,2]
[347158820,1735530639918,-500.0,0.00016397,2]
[347158822,1735530639927,-936.5,0.00016397,2]
[347158824,1735530639935,-500.0,0.00016397,2]
[347158826,1735530639944,-12353.72,0.00016397,2]
[347158828,1735530639953,-500.0,0.00016397,2]
[347158830,1735530639962,-2173.47,0.00016397,2]
[347158832,1735530639971,-514.74288731,0.00016397,2]
[347158834,1735530639980,-376.85495657,0.00016397,2]
[347158836,1735530639990,-516.63702626,0.00016397,2]
[347158838,1735530639999,-515.59360216,0.00016398,2]
[347158840,1735530640008,-622.43,0.00016398,2]
[347158842,1735530640018,-636.23596588,0.00016398,2]
[347158844,1735530640028,-500.0,0.00016398,2]
[347158846,1735530640037,-500.0,0.00016398,2]
[347158848,1735530640047,-1743.55,0.00016398,2]
[347158850,1735530640056,-1999.87,0.00016398,2]
[347158852,1735530640065,-311.945221,0.00016398,2]
[347158854,1735530640074,-462.255887,0.00016398,2]
[347158856,1735530640083,-33460.970438,0.00016398,2]
[347158858,1735530640092,-2297.52,0.00016398,2]
[347158860,1735530640101,-500.0,0.00016398,2]
[347158862,1735530640110,-33985.408968,0.00016398,2]
[347158864,1735530640119,-1588.58,0.00016398,2]
[347158866,1735530640129,-500.0,0.00016398,2]
[347158868,1735530640138,-500.0,0.00016398,2]
[347158869,1735530640146,-3844.73,0.00016398,2]
[347158871,1735530640155,-2360.87,0.00016398,2]
[347158874,1735530640165,-10156.17,0.00016398,2]
[347158876,1735530640174,-913.94,0.00016398,2]
[347158878,1735530640183,-6664.97,0.00016398,2]
[347158881,1735530640192,-970.38,0.00016398,2]
[347158882,1735530640202,-500.0,0.00016398,2]
[347158884,1735530640211,-2743.64,0.00016398,2]
[347158886,1735530640220,-2680.65570118,0.00016398,2]
[347158889,1735530640233,-974.80061012,0.00016398,2]
[347158891,1735530640244,-419.275395,0.00016398,2]
[347158893,1735530640255,-11710.53549523,0.00016398,2]
[347158913,1735530640429,-477.794,0.00015744,2]
[347158915,1735530640439,-174.94279847,0.00016398,2]
[347158917,1735530640448,-500.0,0.00016398,2]
[347158919,1735530640459,-1046.17,0.00016398,2]
[347158921,1735530640473,-1663.13,0.00016398,2]
[347158924,1735530640485,-500.0,0.00016398,2]
[347158926,1735530640496,-2627.33,0.00016398,2]
[347158928,1735530640507,-500.0,0.00016398,2]
[347158930,1735530640518,-1636.25,0.00016398,2]
[347158932,1735530640530,-500.0,0.00016398,2]
[347158933,1735530640542,-1711.21891689,0.00016398,2]
[347158934,1735530640555,-332.0700039,0.00016398,2]
[347158935,1735530640567,-128.44107921,0.00016398,2]
[347158936,1735530640578,-267.03092079,0.00016398,2]
[347158942,1735530640644,-305.0000025,0.00016398,2]
[347158945,1735530640656,-3454.18907671,0.00016398,2]
[347158947,1735530640666,-500.0,0.00016399,2]
[347158949,1735530640676,-507.26097765,0.00016399,2]
[347158951,1735530640686,-302.70899564,0.00016399,2]
[347158953,1735530640698,-197.29100436,0.00016399,2]
[347158955,1735530640708,-500.0,0.00016399,2]
[347158957,1735530640719,-500.0,0.00016399,2]
[347158959,1735530640730,-500.0,0.00016399,2]
[347158962,1735530640740,-500.0,0.00016399,2]
[347158964,1735530640749,-504.07190819,0.00016399,2]
[347158966,1735530640759,-204.01708745,0.00016399,2]
[347158968,1735530640771,-301.45031443,0.00016399,2]
[347158970,1735530640781,-153.98200802,0.00016399,2]
[347158972,1735530640794,-353.39009002,0.00016399,2]
[347158975,1735530640804,-501.91760097,0.00016399,2]
[347158977,1735530640815,-503.76752594,0.00016399,2]
[347158979,1735530640824,-503.82429922,0.00016399,2]
[347158981,1735530640834,-428.95904609,0.00016399,2]
[347158983,1735530640844,-502.46336428,0.00016399,2]
[347158985,1735530640855,-500.0,0.00016399,2]
[347158987,1735530640866,-614.84583814,0.00016399,2]
[347158989,1735530640876,-502.43782042,0.00016399,2]
[347158992,1735530640886,-553.94441492,0.00016399,2]
[347158994,1735530640900,-28.48558508,0.00016399,2]
[347158996,1735530640911,-521.79991984,0.00016399,2]
[347158998,1735530640923,-96.74233232,0.00016399,2]
[347159001,1735530640935,-264.339999,0.00016399,2]
[347159003,1735530640947,-139.75250426,0.00016399,2]
[347159005,1735530640958,-508.38017879,0.00016399,2]
[347159007,1735530640968,-320.49833034,0.00016399,2]
[347159010,1735530640979,-313.19175425,0.00016399,2]
[347159012,1735530640990,-233.35647498,0.00016399,2]
[347159014,1735530641002,-270.10087465,0.00016399,2]
[347159016,1735530641013,-517.23626031,0.00016399,2]
[347159018,1735530641024,-154.46926038,0.00016399,2]
[347159020,1735530641035,-500.0,0.00016399,2]
[347159023,1735530641045,-500.0,0.00016399,2]
[347159025,1735530641056,-500.0,0.00016399,2]
[347159027,1735530641067,-500.0,0.00016399,2]
[347159029,1735530641077,-262.88686926,0.00016399,2]
[347159031,1735530641088,-500.0,0.00016399,2]
[347159033,1735530641098,-500.0,0.00016399,2]
[347159035,1735530641108,-500.0,0.00016399,2]
[347159037,1735530641118,-500.0,0.00016399,2]
[347159040,1735530641129,-457.35517337,0.00016399,2]
[347159047,1735530641184,-42.64482663,0.00016399,2]
[347159049,1735530641195,-500.0,0.00016399,2]
[347159051,1735530641205,-500.0,0.00016399,2]
[347159053,1735530641216,-500.0,0.00016399,2]
[347159055,1735530641227,-500.0,0.00016399,2]
[347159057,1735530641238,-500.0,0.00016399,2]
[347159059,1735530641248,-506.94963397,0.00016399,2]
[347159062,1735530641259,-2444.59,0.00016399,2]
[347159064,1735530641270,-500.0,0.00016399,2]
[347159066,1735530641280,-500.0,0.00016399,2]
[347159068,1735530641290,-500.0,0.00016399,2]
[347159070,1735530641300,-500.0,0.00016399,2]
[347159072,1735530641310,-500.0,0.00016399,2]
[347159074,1735530641321,-538.57,0.00016399,2]
[347159076,1735530641331,-567.25369189,0.00016399,2]
[347159078,1735530641340,-500.0,0.00016399,2]
[347159080,1735530641350,-461.70932523,0.00016399,2]
[347159083,1735530641362,-38.29067477,0.00016399,2]
[347159085,1735530641373,-500.0,0.00016399,2]
[347159087,1735530641383,-500.0,0.00016399,2]
[347159089,1735530641393,-500.0,0.00016399,2]
[347159091,1735530641404,-500.0,0.00016399,2]
[347159094,1735530641415,-500.0,0.00016399,2]
[347159096,1735530641427,-500.0,0.00016399,2]
[347159098,1735530641439,-200.17989459,0.00016399,2]
[347159100,1735530641449,-617.48,0.00016399,2]
[347159102,1735530641459,-500.0,0.00016399,2]
[347159104,1735530641472,-500.0,0.00016399,2]
[347159106,1735530641482,-500.0,0.00016399,2]
[347159108,1735530641491,-500.0,0.00016399,2]
[347159110,1735530641501,-500.0,0.00016399,2]
[347159112,1735530641511,-500.0,0.00016399,2]
[347159114,1735530641522,-500.0,0.00016399,2]
[347159116,1735530641532,-589.0,0.00016399,2]
[347159119,1735530641548,-500.0,0.00016399,2]
[347159121,1735530641558,-500.0,0.00016399,2]
[347159123,1735530641569,-500.0,0.00016399,2]
[347159125,1735530641579,-150.0,0.000164,2]
[347159127,1735530641588,-3687.53289944,0.000164,2]
[347159129,1735530641598,-3687.53289925,0.000164,2]
[347159131,1735530641608,-3687.53289925,0.000164,2]
[347159133,1735530641617,-2843.27067785,0.000164,2]
[347159135,1735530641630,-844.2622214,0.000164,2]
[347159137,1735530641639,-1139.36974266,0.000164,2]
[347159313,1735530643336,-744.79128,0.000164,2]
[347159316,1735530643348,-1803.37187659,0.000164,2]
[347159318,1735530643358,-383.92812341,0.000164,2]
[347159342,1735530643583,-500.0,0.00016397,2]
[347159344,1735530643593,-3303.60477584,0.000164,2]
[347159347,1735530643603,-3687.53289925,0.000164,2]
[347159349,1735530643613,-693.24349806,0.000164,2]
[347159351,1735530643626,-1098.44735005,0.000164,2]
[347159353,1735530643638,-1895.84205114,0.000164,2]
[347159355,1735530643648,-717.40727677,0.000164,2]
[347159358,1735530643660,-1711.87058023,0.000164,2]
[347159360,1735530643672,-1258.25504225,0.000164,2]
[347159362,1735530643682,-176.41202931,0.000164,2]
[347159364,1735530643694,-1480.16144648,0.000164,2]
[347159367,1735530643706,-846.0,0.000164,2]
[347159369,1735530643718,-495.58079881,0.000164,2]
[347159371,1735530643729,-408.23,0.000164,2]
[347159373,1735530643742,-281.14862465,0.000164,2]
[347159375,1735530643752,-106.66137535,0.000164,2]
[347159391,1735530643904,-1465.28724362,0.000164,2]
[347159392,1735530643916,-2115.58428028,0.000164,2]
[347159393,1735530643927,-3666.83053348,0.000164,2]
[347159394,1735530643939,-20.70236577,0.000164,2]
[347159395,1735530643950,-892.45461611,0.000164,2]
[347159398,1735530643972,-537.35,0.000164,2]
[347159400,1735530643983,-2257.72828314,0.000164,2]
[347159403,1735530643993,-3687.53289925,0.000164,2]
[347159405,1735530644004,-3687.53289925,0.000164,2]
[347159407,1735530644014,-3687.53289925,0.000164,2]
[347159409,1735530644024,-2763.07301691,0.000164,2]
[347159672,1735530646543,-1511.55708623,0.00016398,2]
[347159675,1735530646558,-831.18291377,0.00016398,2]
[347159677,1735530646568,-505.06,0.00016399,2]
[347159679,1735530646577,-500.0,0.00016399,2]
[347159681,1735530646586,-924.45988234,0.000164,2]
[347159683,1735530646595,-3687.53289925,0.000164,2]
[347159685,1735530646604,-150.0,0.00016403,2]
[347159687,1735530646613,-150.0,0.00016409,2]
[347159689,1735530646622,-150.0,0.00016411,2]
[347159691,1735530646631,-955.37,0.00016411,2]
[347159692,1735530646640,-4836.15,0.00016411,2]
[347159694,1735530646649,-500.0,0.00016411,2]
[347159696,1735530646659,-500.0,0.00016411,2]
[347159698,1735530646668,-500.0,0.00016411,2]
[347159700,1735530646677,-500.0,0.00016411,2]
[347159702,1735530646686,-500.0,0.00016411,2]
[347159704,1735530646695,-500.0,0.00016411,2]
[347159706,1735530646704,-500.0,0.00016411,2]
[347159708,1735530646713,-500.0,0.00016411,2]
[347159710,1735530646722,-5846.121,0.00016412,2]
[347159712,1735530646731,-258.808,0.00016412,2]
[347159714,1735530646740,-150.0,0.0001642,2]
[347159716,1735530646749,-150.0,0.00016421,2]
[347159718,1735530646759,-150.0,0.00016424,2]
[347159720,1735530646768,-150.0,0.00016426,2]
[347159722,1735530646778,-150.0,0.00016428,2]
[347159724,1735530646787,-200.0,0.00016429,2]
[347159725,1735530646796,-150.0,0.0001643,2]
[347159726,1735530646805,-200.0,0.00016431,2]
[347159727,1735530646814,-150.0,0.00016436,2]
[347159728,1735530646823,-429.34778484,0.00016436,2]
[347159729,1735530646832,-369.69,0.00016438,2]
[347159730,1735530646841,-150.0,0.00016446,2]
[347159731,1735530646850,-150.0,0.00016449,2]
[347159733,1735530646859,-150.0,0.00016452,2]
[347159735,1735530646868,-150.0,0.00016455,2]
[347159737,1735530646877,-200.0,0.00016457,2]
[347159739,1735530646885,-150.0,0.00016458,2]
[347159741,1735530646895,-150.0,0.00016464,2]
[347159743,1735530646903,-1636.25,0.00016465,2]
[347159745,1735530646912,-574.3655358,0.0001647,2]
[347159747,1735530646922,-150.0,0.00016472,2]
[347159749,1735530646931,-1299.5387771,0.00016472,2]
[347159751,1735530646939,-3082.538534,0.00016472,2]
[347159753,1735530646949,-4133.8768809,0.00016472,2]
[347159755,1735530646958,-1707.9913166,0.00016472,2]
[347159757,1735530646967,-715.67923897,0.00016472,2]
[347159759,1735530646976,-137587.11516207,0.00016473,2]
[347159761,1735530646985,-500.0,0.00016473,2]
[347159763,1735530646994,-500.82049059,0.00016473,2]
[347159765,1735530647002,-160.41178908,0.00016473,2]
[347159767,1735530647012,-160.41254613,0.00016473,2]
[347159769,1735530647021,-516.15644644,0.00016473,2]
[347159771,1735530647032,-161.49636936,0.00016473,2]
[347159773,1735530647041,-510.15881271,0.00016473,2]
[347159775,1735530647050,-275.88498799,0.00016473,2]
[347159777,1735530647059,-227.21103533,0.00016473,2]
[347159779,1735530647068,-150.0,0.00016473,2]
[347159781,1735530647077,-500.0,0.00016473,2]
[347159783,1735530647086,-150.0,0.00016473,2]
[347159785,1735530647095,-150.0,0.00016473,2]
[347159787,1735530647104,-1228.15190931,0.00016474,2]
[347159789,1735530647116,-75489.65095817,0.00016474,2]
[347159791,1735530647125,-150.0,0.00016474,2]
[347159793,1735530647134,-150.0,0.00016475,2]
[347159795,1735530647143,-1636.25,0.00016475,2]
[347159797,1735530647152,-150.0,0.00016476,2]
[347159799,1735530647161,-500.0,0.00016476,2]
[347159801,1735530647170,-1691.74,0.00016476,2]
[347159803,1735530647179,-1636.25,0.00016476,2]
[347159805,1735530647188,-1636.25,0.00016476,2]
[347159807,1735530647198,-1636.25,0.00016476,2]
[347159809,1735530647208,-1636.25,0.00016476,2]
[347159811,1735530647217,-1636.25,0.00016476,2]
[347159813,1735530647227,-1636.25,0.00016476,2]
[347159815,1735530647237,-1636.25,0.00016476,2]
[347159817,1735530647246,-1636.25,0.00016476,2]
[347159819,1735530647255,-1636.25,0.00016476,2]
[347159821,1735530647264,-1636.25,0.00016476,2]
[347159823,1735530647276,-1636.25,0.00016476,2]
[347159825,1735530647285,-1636.25,0.00016476,2]
[347159827,1735530647295,-1636.25,0.00016476,2]
[347159829,1735530647304,-1636.25,0.00016476,2]
[347159831,1735530647314,-1636.25,0.00016476,2]
[347159833,1735530647323,-1636.25,0.00016476,2]
[347159835,1735530647333,-1636.25,0.00016476,2]
[347159837,1735530647343,-1636.25,0.00016476,2]
[347159839,1735530647352,-1636.25,0.00016476,2]
[347159841,1735530647361,-1636.25,0.00016476,2]
[347159843,1735530647370,-1636.39561708,0.00016476,2]
[347159845,1735530647380,-666.0,0.00016476,2]
[347159847,1735530647389,-78546.96738263,0.00016476,2]
[347159849,1735530647401,-7178.54694628,0.00016476,2]
[347159852,1735530647412,-1559.8574844,0.00016476,2]
[347159854,1735530647423,-345.27883011,0.00016476,2]
[347159856,1735530647434,-7858.73569701,0.00016476,2]
[347159858,1735530647446,-3622.53010337,0.00016476,2]
[347159861,1735530647470,-35157.00000075,0.00016476,2]
[347159863,1735530647481,-8190.0,0.00016476,2]
[347159865,1735530647492,-8022.0,0.00016476,2]
[347159868,1735530647503,-3064.44168793,0.00016476,2]
[347159870,1735530647515,-219884.67494037,0.00016476,2]
[347159872,1735530647528,-9733.8571043,0.00016476,2]
[347159874,1735530647539,-393601.7656383,0.00016476,2]
[347159876,1735530647551,-409.73211,0.00016476,2]
[347159878,1735530647562,-328.68581002,0.00016476,2]
[347159882,1735530647584,-576.70999178,0.00016476,2]
[347159884,1735530647594,-1104.89183922,0.00016476,2]
[347160615,1735530877771,237.94,0.00010137,2]
[347160617,1735531728145,168.57,0.00010137,2]
[347160640,1735531832273,-606.08,0.00013452,2]
[347160641,1735531832284,-2333.44,0.00015294,2]
[347160642,1735531832297,-1557.56,0.00015294,2]
[347160643,1735531832309,-1172.0,0.00015294,2]
[347160644,1735531832320,-150.0,0.00015294,2]
[347160645,1735531832331,-167.73,0.00015318,2]
[347160646,1735531832342,-1000.0,0.0001532,2]
[347160647,1735531832352,-250.0,0.00015324,2]
[347160648,1735531832363,-310.24,0.00015362,2]
[347160649,1735531832373,-398.84,0.0001553,2]
[347160650,1735531832383,-507.26,0.00015542,2]
[347160651,1735531832394,-502.83,0.00015552,2]
[347160652,1735531832405,-498.22,0.00015569,2]
[347160653,1735531832415,-500.04,0.00015601,2]
[347160654,1735531832426,-482.317,0.0001566,2]
[347160655,1735531832437,-606.08,0.00015716,2]
[347160656,1735531832448,-150.575,0.00015744,2]
[347160657,1735531832459,-568.219,0.00015744,2]
[347160658,1735531832470,-513.649,0.00015744,2]
[347160659,1735531832480,-248.045,0.00015744,2]
[347160660,1735531832491,-169.85,0.00015796,2]
[347160661,1735531832502,-166.0,0.00015842,2]
[347160662,1735531832512,-12.91263491,0.00015847,2]
[347160663,1735531832525,-487.37736509,0.00015847,2]
[347160664,1735531832535,-874.54,0.000159,2]
[347160665,1735531832545,-150.0,0.000159,2]
[347160666,1735531832556,-150.0,0.000159,2]
[347160667,1735531832566,-150.5,0.000159,2]
[347160668,1735531832577,-436.69,0.000159,2]
[347160669,1735531832587,-150.0,0.000159,2]
[347160670,1735531832597,-978.41,0.000159,2]
[347160671,1735531832607,-436.69,0.000159,2]
[347160672,1735531832617,-150.0,0.000159,2]
[347160673,1735531832627,-978.41,0.000159,2]
[347160674,1735531832637,-150.0,0.000159,2]
[347160675,1735531832647,-150.0,0.000159,2]
[347160676,1735531832657,-150.0,0.000159,2]
[347160677,1735531832667,-978.41,0.000159,2]
[347160678,1735531832677,-436.08,0.000159,2]
[347160679,1735531832687,-353.51045945,0.000159,2]
[347160680,1735531832703,-398.79954055,0.000159,2]
[347160681,1735531832714,-900.0,0.00015987,2]
[347160682,1735531832724,-500.0,0.00015987,2]
[347160683,1735531832735,-492.95,0.00015987,2]
[347160684,1735531832745,-600.0,0.00016,2]
[347160686,1735531832755,-300.0,0.00016,2]
[347160688,1735531832765,-300.05,0.00016,2]
[347160690,1735531832774,-167.73,0.00016084,2]
[347160691,1735531832784,-2379.71561261,0.000162,2]
[347160692,1735531832796,-10706.81711968,0.000162,2]
[347160693,1735531832809,-4409.11299176,0.000162,2]
[347160694,1735531832823,-150.0,0.00016207,2]
[347160695,1735531832832,-150.0,0.00016214,2]
[347160696,1735531832842,-150.0,0.00016216,2]
[347160697,1735531832852,-150.0,0.00016223,2]
[347160698,1735531832863,-150.0,0.00016226,2]
[347160699,1735531832873,-150.0,0.00016228,2]
[347160700,1735531832883,-150.0,0.00016234,2]
[347160701,1735531832895,-108.07030409,0.00016239,2]
[347160702,1735531832911,-41.92969591,0.00016239,2]
[347160703,1735531832921,-150.0,0.0001624,2]
[347160704,1735531832930,-150.0,0.0001624,2]
[347160705,1735531832940,-112.99559628,0.0001624,2]
[347160706,1735531832952,-37.00440372,0.0001624,2]
[347160707,1735531832962,-150.0,0.00016247,2]
[347160708,1735531832971,-87.11519956,0.0001625,2]
[347160709,1735531832983,-62.88480044,0.0001625,2]
[347160710,1735531832994,-150.0,0.00016252,2]
[347160711,1735531833004,-150.0,0.00016254,2]
[347160712,1735531833014,-150.0,0.00016262,2]
[347160713,1735531833024,-150.0,0.00016265,2]
[347160714,1735531833034,-150.0,0.00016273,2]
[347160715,1735531833044,-150.0,0.00016287,2]
[347160716,1735531833054,-184.62680785,0.0001629,2]
[347160717,1735531833065,-150.0,0.00016292,2]
[347160718,1735531833075,-150.0,0.00016307,2]
[347160719,1735531833085,-150.0,0.00016308,2]
[347160720,1735531833095,-271.44613086,0.0001631,2]
[347160721,1735531833108,-1895.00058914,0.0001631,2]
[347160722,1735531833118,-150.0,0.00016312,2]
[347160723,1735531833129,-150.0,0.00016327,2]
[347160724,1735531833140,-150.0,0.00016331,2]
[347160725,1735531833150,-150.0,0.00016332,2]
[347160726,1735531833160,-150.0,0.00016334,2]
[347160727,1735531833170,-150.0,0.00016334,2]
[347160728,1735531833181,-150.0,0.0001634,2]
[347160729,1735531833191,-500.0,0.00016345,2]
[347160730,1735531833201,-150.0,0.00016348,2]
[347160731,1735531833211,-150.0,0.0001635,2]
[347160732,1735531833222,-150.0,0.00016361,2]
[347160733,1735531833232,-150.0,0.00016364,2]
[347160734,1735531833242,-150.0,0.00016364,2]
[347160735,1735531833252,-1500.0,0.00016368,2]
[347160736,1735531833263,-5000.0,0.00016376,2]
[347160737,1735531833274,-1761.0955,0.00016377,2]
[347160738,1735531833284,-157.1208901,0.00016378,2]
[347160739,1735531833295,-4399.48425059,0.00016378,2]
[347160740,1735531833306,-4399.48425059,0.00016379,2]
[347160741,1735531833318,-4399.48425059,0.00016379,2]
[347160742,1735531833646,-150.0,0.0001638,2]
[347160743,1735531833656,-4399.48425059,0.0001638,2]
[347160744,1735531833666,-10289.33168343,0.0001638,2]
[347160745,1735531833679,-7961.71058412,0.0001638,2]
[347160746,1735531833690,-150.0,0.00016383,2]
[347160747,1735531833700,-150.0,0.00016384,2]
[347160748,1735531833711,-150.0,0.00016389,2]
[347160749,1735531833722,-150.0,0.00016395,2]
[347160750,1735531833733,-150.0,0.00016395,2]
[347160751,1735531833742,-502.57,0.00016397,2]
[347160752,1735531833752,-500.0,0.00016397,2]
[347160753,1735531833762,-558.16,0.00016397,2]
[347160754,1735531833771,-559.0116325,0.00016397,2]
[347160755,1735531833781,-150.0,0.00016397,2]
[347160756,1735531833791,-500.0,0.00016398,2]
[347160757,1735531833802,-506.85773133,0.00016398,2]
[347160758,1735531833813,-500.0,0.00016398,2]
[347160759,1735531833824,-500.0,0.00016398,2]
[347160760,1735531833834,-506.76300827,0.00016398,2]
[347160761,1735531833843,-500.0,0.00016398,2]
[347160762,1735531833855,-571.82805168,0.00016398,2]
[347160763,1735531833864,-592.27325012,0.00016398,2]
[347160764,1735531833874,-500.0,0.00016398,2]
[347160765,1735531833884,-500.0,0.00016398,2]
[347160766,1735531833895,-500.0,0.00016398,2]
[347160767,1735531833905,-150.0,0.00016399,2]
[347160768,1735531833915,-150.0,0.000164,2]
[347160769,1735531833925,-379.08044955,0.000164,2]
[347160770,1735531833934,-379.08044955,0.000164,2]
[347160771,1735531833944,-379.08044955,0.000164,2]
[347160772,1735531833953,-1500.0,0.00016411,2]
[347160773,1735531833963,-5079.49,0.00016412,2]
[347160774,1735531833972,-240.292,0.00016412,2]
[347160775,1735531833983,-150.0,0.00016412,2]
[347160776,1735531833994,-150.0,0.00016414,2]
[347160777,1735531834003,-150.0,0.00016414,2]
[347160778,1735531834013,-429.34778484,0.00016416,2]
[347160779,1735531834024,-150.0,0.0001642,2]
[347160780,1735531834036,-150.0,0.00016428,2]
[347160781,1735531834048,-150.0,0.00016429,2]
[347160782,1735531834059,-498.41,0.0001643,2]
[347160783,1735531834069,-150.0,0.00016435,2]
[347160784,1735531834079,-150.0,0.00016441,2]
[347160785,1735531834090,-150.0,0.0001645,2]
[347160786,1735531834099,-150.0,0.00016453,2]
[347160787,1735531834109,-150.0,0.00016454,2]
[347160788,1735531834119,-150.0,0.00016454,2]
[347160789,1735531834129,-150.0,0.00016462,2]
[347160790,1735531834138,-150.0,0.00016464,2]
[347160791,1735531834149,-150.0,0.00016466,2]
[347160792,1735531834159,-150.0,0.00016473,2]
[347160793,1735531834168,-265.07145836,0.00016474,2]
[347160794,1735531834177,-500.0,0.00016474,2]
[347160795,1735531834187,-500.0,0.00016474,2]
[347160796,1735531834197,-500.0,0.00016474,2]
[347160797,1735531834207,-500.0,0.00016474,2]
[347160798,1735531834217,-500.0,0.00016474,2]
[347160799,1735531834227,-500.0,0.00016474,2]
[347160800,1735531834236,-500.0,0.00016474,2]
[347160801,1735531834245,-500.0,0.00016474,2]
[347160802,1735531834255,-500.0,0.00016474,2]
[347160803,1735531834264,-326.10038777,0.00016474,2]
[347160804,1735531834274,-500.0,0.00016474,2]
[347160805,1735531834283,-33.236592,0.00016474,2]
[347160806,1735531838232,-500.0,0.00016473,2]
[347160807,1735531838242,-150.0,0.00016473,2]
[347160808,1735531838251,-500.0,0.00016473,2]
[347160809,1735531838260,-466.763408,0.00016474,2]
[347160810,1735531838270,-328.27355691,0.00016474,2]
[347160811,1735531838392,-171.72644309,0.00016474,2]
[347160812,1735531838401,-458.27355691,0.00016474,2]
[347160813,1735531838497,-41.72644309,0.00016474,2]
[347160814,1735531838506,-500.0,0.00016474,2]
[347160815,1735531838515,-500.0,0.00016474,2]
[347160816,1735531838524,-492.21448199,0.00016474,2]
[347160977,1735531840223,-530.69259837,0.00016474,2]
[347160984,1735531840278,-283.34291964,0.00016474,2]
[347160986,1735531840287,-1943.87,0.00016474,2]
[347160988,1735531840296,-897.48,0.00016474,2]
[347160990,1735531840306,-500.0,0.00016474,2]
[347160992,1735531840315,-500.0,0.00016474,2]
[347160994,1735531840325,-2103.74,0.00016474,2]
[347160996,1735531840334,-500.0,0.00016474,2]
[347160998,1735531840344,-500.0,0.00016474,2]
[347161000,1735531840353,-10359.1,0.00016474,2]
[347161002,1735531840363,-167.17929066,0.00016474,2]
[347161004,1735531840373,-626.58,0.00016474,2]
[347161006,1735531840383,-226.20761444,0.00016474,2]
[347161008,1735531840393,-772.433725,0.00016475,2]
[347161010,1735531840403,-753.922174,0.00016475,2]
[347161012,1735531840412,-504.95223759,0.00016475,2]
[347161014,1735531840421,-511.22711984,0.00016475,2]